lending/lending_fUSD_20250315
["ID","MTS","AMOUNT","RATE_DAILY","PERIOD"]
[356179141,1742026232131,-993.0,0.00028789,2]
[356179142,1742026232141,-379.6167143,0.00028789,2]
[356179143,1742026232150,-2639.37120521,0.000289,5]
[356179144,1742026232218,-250.19888621,0.000289,5]
[356179145,1742026232228,-1399.80111379,0.00028958,2]
[356179146,1742026232243,-2868.49888621,0.00028958,2]
[356179147,1742026232253,-1000.0,0.00028958,2]
[356179148,1742026232262,-200.0,0.00028958,2]
[356179149,1742026232272,-165.55,0.00028958,120]
[356179150,1742026232282,-993.0,0.00029076,2]
[356179151,1742026232291,-430.96062934,0.00029364,2]
[356179152,1742026232310,-562.03937066,0.00029364,2]
[356179153,1742026232320,-150.0,0.0002955,2]
[356179154,1742026232330,-647.41082868,0.00029652,2]
[356179155,1742026232341,-345.58917132,0.00029652,2]
[356179156,1742026232351,-169.81,0.00030327,2]
[356179157,1742026232362,-337.54,0.00030365,2]
[356179158,1742026232372,-150.0,0.00030427,120]
[356179159,1742026232381,-150.0,0.00031085,2]
[356179161,1742026232391,-23900.0,0.00031086,2]
[356179163,1742026232400,-500.0,0.00031154,7]
[356179164,1742026232411,-1500.0,0.000312,2]
[356179165,1742026232421,-176.41,0.00031275,2]
[356179166,1742026232431,-9420.42,0.00031313,2]
[356179167,1742026232440,-4000.0,0.00031394,2]
[356179168,1742026232450,-169.81,0.00031697,2]
[356179169,1742026232459,-250.0,0.00032071,2]
[356179170,1742026232469,-411.78034508,0.00032098,2]
[356179171,1742026232479,-1614.266,0.00032098,31]
[356179172,1742026232488,-5512.3744836,0.00032099,2]
[356179397,1742026240424,-3608.47587,0.00032099,2]
[356179532,1742026243041,-2801.29996,0.00032099,2]
[356179533,1742026243053,-1596.299985,0.00032099,2]
[356179534,1742026243066,-12743.65719097,0.00032099,2]
[356179535,1742026243077,-1547.15942826,0.00032099,2]
[356179541,1742026246123,-839.69818217,0.00032099,2]
[356179542,1742026246134,-489.5622,0.00032099,2]
[356179543,1742026246144,-155.3,0.00032121,2]
[356179544,1742026246154,-151.68421828,0.00032245,30]
[356179545,1742026246236,-0.90578172,0.00032245,30]
[356179546,1742026246246,-395.16,0.00032282,2]
[356179547,1742026246257,-1000.0,0.00032282,2]
[356179548,1742026246266,-338.88,0.00032282,2]
[356179549,1742026246276,-611.41,0.00032282,2]
[356179550,1742026246286,-156.01,0.00032526,2]
[356179551,1742026246296,-1000.0,0.00032577,2]
[356179552,1742026246306,-337.54,0.00032629,2]
[356179553,1742026246315,-215.11,0.00032646,2]
[356179554,1742026246325,-500.0,0.00032798,7]
[356179555,1742026246335,-150.0,0.00032803,120]
[356179556,1742026246346,-150.0,0.00033,14]
[356179557,1742026246356,-3000.0,0.000337,2]
[356179558,1742026246366,-1500.0,0.00034,2]
[356179559,1742026246379,-200.0,0.00034244,120]
[356179560,1742026246390,-150.0,0.00034269,2]
[356179561,1742026246400,-500.0,0.00034442,60]
[356179562,1742026246411,-155.3,0.0003445,2]
[356179563,1742026246421,-383.0,0.000345,30]
[356179564,1742026246434,-3441.06,0.000347,2]
[356179565,1742026246444,-150.0,0.00034771,2]
[356179566,1742026246454,-11320.12213977,0.000348,7]
[356179567,1742026246465,-155.66798162,0.000348,2]
[356179568,1742026246475,-1993.0783,0.00034815,3]
[356179569,1742026246486,-150.0,0.00034837,2]
[356179570,1742026246497,-160.09692657,0.00034873,5]
[356179571,1742026246507,-156.39,0.0003489,2]
[356179572,1742026246518,-18864.35667243,0.0003489,2]
[356179573,1742026246528,-337.54,0.00034892,2]
[356179574,1742026246538,-2349.59075551,0.00034899,40]
[356179575,1742026246547,-340.65289032,0.000349,2]
[356179576,1742026246557,-7125.25118274,0.000349,2]
[356179577,1742026246567,-5000.0,0.000349,2]
[356179578,1742026246576,-211.0,0.0003498,2]
[356179579,1742026246585,-89002.5112968,0.0003498,2]
[356179580,1742026246595,-175.85777446,0.00034989,7]
[356179581,1742026246604,-29667.5037656,0.0003499,2]
[356179582,1742026246614,-10046.12517691,0.0003499,7]
[356179590,1742027010163,250.0,9e-05,2]
[356179591,1742027108636,34303.55203,0.0001,2]
[356179592,1742027108663,58046.09152625,0.0001,2]
[356179600,1742027316259,-150.0,9.999e-05,2]
[356179602,1742027316285,-445.67990607,9.999e-05,2]
[356179604,1742027316313,-3790.99765211,0.0001,2]
[356179606,1742027316353,-4386.67755818,0.0001,2]
[356179609,1742027316391,-4386.67755818,0.0001,2]
[356179611,1742027316431,-4386.67755818,0.0001,2]
[356179613,1742027316463,-4386.67755818,0.0001,2]
[356179617,1742027316625,-4386.67755818,0.0001,2]
[356179634,1742027432161,-799.99997,0.0001,2]
[356179635,1742027432172,-1671.13242083,0.0001,2]
[356179636,1742027432184,-3120.71794794,0.0001,2]
[356179637,1742027432268,-1303.33032865,0.0001,2]
[356179638,1742027432279,-1214.77358413,0.0001,2]
[356179639,1742027432324,-9725.65861626,0.0001,2]
[356179640,1742027432336,-598.03,0.0001,2]
[356179641,1742027432347,-5695.5,0.0001,2]
[356179642,1742027432359,-864.10549473,0.0001,2]
[356179643,1742027432381,-159871.63404523,0.0001,2]
[356179644,1742027432391,-2793.25108845,0.000109,2]
[356179645,1742027432402,-300.0,0.00011,2]
[356179646,1742027432413,-1018.37136115,0.00025,2]
[356179647,1742027432422,-1881.99999904,0.00025,7]
[356179648,1742027432431,-728.03,0.00026849,2]
[356179649,1742027432440,-155.66798162,0.000272,2]
[356179650,1742027432450,-155.66798162,0.000272,2]
[356179651,1742027432459,-155.66798162,0.000272,2]
[356179652,1742027432469,-155.66798162,0.000272,2]
[356179653,1742027432482,-155.66798162,0.000272,2]
[356179654,1742027432492,-155.66798162,0.000272,2]
[356179655,1742027432501,-500.0,0.00027397,2]
[356179656,1742027432510,-500.0,0.00027397,2]
[356179657,1742027432520,-500.0,0.00027397,2]
[356179658,1742027432530,-230.91567893,0.00027397,2]
[356179659,1742027432540,-192.32396432,0.00027397,2]
[356179660,1742027432549,-155.66798162,0.0002826,2]
[356179661,1742027432558,-150.0,0.00028485,2]
[356179662,1742027432568,-14999.999999,0.00029556,2]
[356179663,1742027432578,-5770.87917627,0.0003,2]
[356179664,1742027432587,-211.0,0.0003,2]
[356179665,1742027432597,-150.0,0.00030924,2]
[356179666,1742027432606,-500.0,0.00031154,7]
[356179667,1742027432616,-155.66798162,0.0003117,2]
[356179668,1742027432627,-162.43,0.00031173,2]
[356179669,1742027432636,-305.33,0.00031741,2]
[356179670,1742027432646,-3000.0,0.000321,2]
[356179671,1742027432655,-4000.0,0.00032609,2]
[356179672,1742027432665,-728.03,0.00032646,2]
[356179673,1742027432675,-1451.93,0.00032648,2]
[356179674,1742027432686,-162.43,0.00032731,2]
[356179675,1742027432695,-500.0,0.00032798,7]
[356179676,1742027432705,-153.97,0.000329,2]
[356179677,1742027432715,-154.54,0.00033084,2]
[356179678,1742027432725,-1000.0,0.00033113,2]
[356179679,1742027432739,-247.91,0.00033113,2]
[356179680,1742027432748,-23900.0,0.00033299,2]
[356179681,1742027432760,-509.5,0.00033378,2]
[356179682,1742027432770,-772.67,0.000335,2]
[356179683,1742027432781,-250.0,0.00033659,2]
[356179684,1742027432790,-303.38,0.00033714,2]
[356179685,1742027432800,-1000.0,0.00033769,2]
[356179686,1742027432811,-1805.19,0.00033973,2]
[356179687,1742027432820,-152.59,0.00033981,120]
[356179688,1742027432831,-7420.87071513,0.00034,30]
[356179689,1742027432840,-181.044,0.00034,37]
[356179690,1742027432849,-1765.819,0.00034,37]
[356179691,1742027432859,-305.33,0.00034005,2]
[356179692,1742027432868,-9922.14,0.00034056,2]
[356179693,1742027432878,-500.0,0.00034442,60]
[356179694,1742027432888,-2949.48,0.000347,2]
[356179695,1742027432898,-3000.0,0.000348,2]
[356179696,1742027432907,-554.1031482,0.0003488,2]
[356179697,1742027432917,-6412.72606452,0.0003488,2]
[356179698,1742027432927,-16977.92100516,0.0003489,2]
[356179699,1742027432936,-2519.70465852,0.0003489,7]
[356179700,1742027432946,-6537.00416531,0.0003489,2]
[356179701,1742027432956,-2748.976,0.0003489,2]
[356179702,1742027432965,-291.98819172,0.000349,2]
[356179703,1742027432975,-10574.74,0.000349,60]
[356179704,1742027432988,-306.0925,0.000349,2]
[356179705,1742027432998,-19611.0124959,0.0003497,2]
[356179706,1742027433008,-152.0600704,0.00034973,5]
[356179707,1742027433018,-155.061256,0.00034973,5]
[356179708,1742027433029,-264.1043328,0.00034973,5]
[356179709,1742027433039,-152.07524,0.00034973,5]
[356179710,1742027433049,-160.063232,0.00034973,5]
[356179711,1742027433059,-152.06,0.00034973,5]
[356179712,1742027433068,-152.0600704,0.00034973,5]
[356179713,1742027433079,-151.0596752,0.00034973,5]
[356179714,1742027433089,-151.0596752,0.00034973,5]
[356179715,1742027433099,-160.063232,0.00034973,5]
[356179716,1742027433110,-200.07904,0.00034973,5]
[356179717,1742027433120,-152.0600704,0.00034973,5]
[356179718,1742027433130,-151.0596752,0.00034973,2]
[356179719,1742027433140,-152.0600704,0.00034973,5]
[356179720,1742027433150,-160.063232,0.00034973,5]
[356179721,1742027433159,-514.0208331,0.0003498,21]
[356179722,1742027433170,-35361.86869092,0.0003498,120]
[356179723,1742027433179,-735.56399415,0.0003498,21]
[356179724,1742027433189,-59009.43072619,0.0003498,2]
[356179725,1742027433217,-452.88181417,0.0003498,2]
[356179726,1742027433234,-97425.78742664,0.0003498,2]
[356179727,1742027433244,-1330.77964832,0.0003498,2]
[356179728,1742027433254,-150.92,0.0003498,2]
[356179729,1742027433264,-665.38982416,0.0003499,2]
[356179730,1742027433273,-7000.47592181,0.0003499,7]
[356179731,1742027433285,-1212.17759608,0.0003499,7]
[356179738,1742027438027,-155.66798162,0.0003408,2]
[356179739,1742027438039,-4667.61087127,0.0003499,7]
[356179740,1742027438050,-306.51011054,0.0003499,7]
[356179741,1742027438133,-17545.23593072,0.0003499,7]
[356179742,1742027438145,-41987.38439267,0.0003499,7]
[356179743,1742027438155,-735.8258248,0.0003499,120]
[356179744,1742027438189,-1264.1741752,0.0003499,120]
[356179745,1742027438199,-151.0,0.0003499,7]
[356179746,1742027438209,-8.73598488,0.0003499,7]
[356179747,1742027438245,-142.26401512,0.0003499,7]
[356179748,1742027438255,-151.0,0.0003499,7]
[356179749,1742027438264,-127.10098488,0.0003499,7]
[356179750,1742027438276,-23.89901512,0.0003499,7]
[356179751,1742027438286,-151.0,0.0003499,7]
[356179752,1742027438294,-1393.81897257,0.0003499,2]
[356179753,1742027440195,-1027.8865036,0.0003499,2]
[356179754,1742027440336,-2186.23539289,0.0003499,2]
[356179755,1742027440511,-34614.08412284,0.0003499,2]
[356179756,1742027440522,-8650.06771408,0.0003499,2]
[356179757,1742027440532,-150.92,0.0003499,2]
[356179758,1742027440541,-150.92,0.0003499,2]
[356179759,1742027440551,-150.92,0.0003499,2]
[356179760,1742027440560,-150.92,0.0003499,2]
[356179761,1742027440570,-150.92,0.0003499,2]
[356179762,1742027440579,-150.92,0.0003499,2]
[356179763,1742027440589,-1248.0,0.00035,5]
[356179764,1742027440599,-225.66020537,0.00035,2]
[356179765,1742027440608,-3900.0,0.00035,7]
[356179766,1742027440618,-4604.23230987,0.00035,30]
[356179767,1742027440687,-1469.52906931,0.00035,30]
[356179768,1742027440741,-521.99805177,0.00035,30]
[356179773,1742027443109,-155.061256,0.00034973,5]
[356179774,1742027443120,-1021.0,0.00035,5]
[356179775,1742027443130,-2451.938759,0.00035,30]
[356179776,1742027443161,-13558.66565045,0.00035,30]
[356179777,1742027443218,-10881.19675916,0.00035,30]
[356179779,1742027443648,-253.24175003,0.00035,30]
[356179780,1742027446049,-838.92,0.00035,30]
[356179819,1742028632430,-271.89,0.00026849,2]
[356179820,1742028632439,-43.15112447,0.0002975,2]
[356179821,1742028632521,-5247.93028853,0.0002975,2]
[356179822,1742028632531,-3000.0,0.000299,2]
[356179823,1742028632541,-205.94821733,0.00030582,2]
[356179824,1742028632563,-150.0,0.00030682,2]
[356179825,1742028632574,-550.0,0.00030682,2]
[356179826,1742028632584,-5905.7335,0.00031206,2]
[356179827,1742028632595,-373.10791413,0.00031464,2]
[356179828,1742028632606,-363.15,0.00031868,2]
[356179829,1742028632618,-150.0,0.00032189,2]
[356179830,1742028632629,-3000.0,0.000326,2]
[356179831,1742028632638,-271.89,0.00032646,2]
[356179832,1742028632649,-153.97,0.00032646,2]
[356179833,1742028632658,-205.94821733,0.00032676,2]
[356179834,1742028632668,-973.8467,0.0003279,7]
[356179835,1742028632678,-150.0,0.0003289,2]
[356179836,1742028632688,-550.0,0.0003289,2]
[356179837,1742028632698,-2735.90830969,0.000329,6]
[356179838,1742028632709,-350.0,0.00033083,2]
[356179839,1742028632719,-1000.0,0.00033259,2]
[356179840,1742028632729,-200.0,0.00033314,2]
[356179841,1742028632740,-154.54,0.00033337,2]
[356179842,1742028632750,-250.0,0.00033349,2]
[356179843,1742028632759,-4000.0,0.00033369,2]
[356179844,1742028632770,-151.02,0.00033433,2]
[356179845,1742028632783,-1164.87,0.0003389,2]
[356179846,1742028632793,-23900.0,0.00033921,2]
[356179847,1742028632803,-2000.0,0.00033924,120]
[356179848,1742028632812,-363.15,0.00034132,2]
[356179849,1742028632822,-424.58,0.00034141,2]
[356179850,1742028632832,-300.0,0.00034141,2]
[356179851,1742028632843,-150.0,0.00034548,10]
[356179852,1742028632853,-172.26,0.00034617,2]
[356179853,1742028632863,-900.0,0.000347,12]
[356179854,1742028632873,-205.94821733,0.00034769,2]
[356179855,1742028632882,-1575.1079,0.0003479,2]
[356179856,1742028632892,-297.152,0.000348,2]
[356179857,1742028632902,-1900.0,0.000348,12]
[356179858,1742028632911,-1412.655,0.0003487,40]
[356179859,1742028632921,-488.87876521,0.0003487,2]
[356179860,1742028632931,-299.07986565,0.00034889,7]
[356179861,1742028632941,-3233.78408147,0.0003489,35]
[356179862,1742028632951,-15337.77540469,0.0003489,2]
[356179863,1742028632960,-21089.3455,0.0003489,2]
[356179864,1742028632970,-1000.0,0.0003489,2]
[356179865,1742028632980,-2839.4514,0.0003489,2]
[356179866,1742028632989,-250.27559286,0.000349,2]
[356179867,1742028632998,-5771.45345805,0.000349,2]
[356179868,1742028633008,-5000.0,0.000349,2]
[356179869,1742028633018,-2900.0,0.000349,12]
[356179870,1742028633028,-166.03096228,0.000349,2]
[356179871,1742028633039,-2351.72434798,0.000349,7]
[356179872,1742028633049,-517.16293832,0.000349,2]
[356179873,1742028633059,-152.59,0.00034921,120]
[356179874,1742028633069,-1000.0,0.00034952,2]
[356179875,1742028633079,-500.0,0.00034973,5]
[356179876,1742028633089,-160.063232,0.00034973,5]
[356179877,1742028633100,-155.061256,0.00034973,5]
[356179878,1742028633110,-160.063232,0.00034973,5]
[356179879,1742028633120,-151.0596752,0.00034973,5]
[356179880,1742028633130,-620.30800581,0.00034973,5]
[356179881,1742028633140,-159.96319248,0.00034973,5]
[356179882,1742028633151,-160.063232,0.00034973,5]
[356179883,1742028633161,-160.063232,0.00034973,5]
[356179884,1742028633171,-152.534034,0.0003498,7]
[356179885,1742028633182,-2772.39015936,0.0003498,2]
[356179886,1742028633192,-150.92,0.0003499,2]
[356179887,1742028633202,-150.92,0.0003499,2]
[356179888,1742028633212,-150.92,0.0003499,2]
[356179889,1742028633222,-150.92,0.0003499,2]
[356179890,1742028633232,-1239.0,0.00035,5]
[356179891,1742028633242,-671.65745698,0.00035,21]
[356179892,1742028633252,-33911.20549422,0.00035,21]
[356179893,1742028633262,-178996.60486806,0.00035,30]
[356179894,1742028633284,-7584.80622634,0.00035,30]
[356179895,1742028633296,-518.32839176,0.00035,30]
[356179896,1742028633308,-15175.42357117,0.00035,30]
[356179897,1742028633324,-1716.80885001,0.00035,30]
[356179898,1742028633363,-30533.79597212,0.00035,30]
[356179899,1742028633375,-6256.1065,0.00035,30]
[356179900,1742028633387,-4300.91743727,0.00035,30]
[356179901,1742028633399,-5673.28923408,0.00035,30]
[356179903,1742028638112,-252.90102083,0.00031106,2]
[356179904,1742028638125,-386.15657917,0.00031106,2]
[356179905,1742028638135,-1388.22312365,0.00035,30]
[356179906,1742028638147,-500.78296798,0.00035,30]
[356179907,1742028638161,-1052.16459266,0.00035,30]
[356179908,1742028638172,-1109.58021,0.00035,30]
[356179909,1742028638184,-3967.82184322,0.00035,30]
[356179910,1742028638226,-953.82884201,0.00035,30]
[356179911,1742028638237,-9440.0,0.00035,30]
[356179912,1742028638248,-2805.69243324,0.00035,30]
[356179913,1742028638286,-653.80485839,0.00035,30]
[356179914,1742028638298,-1453.84773269,0.00035,30]
[356179915,1742028638317,-587.43123715,0.00035,30]
[356179916,1742028638329,-10736.77896251,0.00035,30]
[356179917,1742028638340,-466.36770407,0.00035,30]
[356179918,1742028638364,-868.97182916,0.00035,30]
[356179919,1742028638376,-12642.066,0.00035,30]
[356179920,1742028638387,-611.70497818,0.00035,30]
[356179921,1742028638399,-417.93362683,0.00035,30]
[356179922,1742028638411,-10865.48604417,0.00035,30]
[356179923,1742028638422,-6018.19845647,0.00035,30]
[356179924,1742028638434,-9109.46849774,0.00035,30]
[356179925,1742028638445,-20000.0,0.00035,30]
[356179926,1742028638457,-2547.105,0.00035,30]
[356179927,1742028640278,-2429.4141106,0.00035,30]
[356179928,1742028640323,-10393.86368459,0.00035,30]
[356179929,1742028640335,-518.65116546,0.00035,30]
[356179930,1742028640349,-864.37212996,0.00035,30]
[356179931,1742028640378,-494.99999995,0.00035,30]
[356179932,1742028640390,-500.0,0.00035,30]
[356179933,1742028640401,-577.46205938,0.00035,30]
[356179934,1742028640412,-709.93866469,0.00035,30]
[356179935,1742028640424,-6492.98264759,0.00035,30]
[356179936,1742028640435,-746.01551085,0.00035,30]
[356179937,1742028640451,-13545.21658331,0.00035,30]
[356179938,1742028640462,-445.05345039,0.00035,30]
[356179939,1742028640473,-1442.78522735,0.00035,30]
[356179940,1742028640539,-490.0,0.00035,30]
[356179941,1742028640551,-10953.2581042,0.00035,30]
[356179942,1742028640562,-2222.62780469,0.00035,30]
[356179943,1742028640595,-654.839996,0.00035,30]
[356179944,1742028640606,-1028.93609989,0.00035,30]
[356179945,1742028640617,-682.60523184,0.00035,30]
[356179946,1742028640628,-1034.355,0.00035,30]
[356179947,1742028640702,-1328.12717403,0.00035,30]
[356179948,1742028640713,-3308.43052242,0.00035,30]
[356179950,1742028643266,-2696.92481542,0.000349,7]
[356179951,1742028643276,-59107.14613853,0.00035,30]
[356179952,1742028643288,-643.3159777,0.00035,30]
[356179953,1742028643301,-8848.34865283,0.00035,30]
[356179954,1742028643313,-9320.98184442,0.00035,30]
[356179955,1742028643325,-113071.99790693,0.00035,30]
[356179956,1742028643337,-2287.2892119,0.00035,30]
[356179957,1742028643349,-1343.69034776,0.00035,30]
[356179958,1742028643360,-631.44,0.00035,30]
[356179959,1742028643373,-1356.4999996,0.00035,30]
[356179960,1742028643389,-2490.6707393,0.00035,30]
[356179961,1742028643401,-2903.04000028,0.00035,30]
[356179962,1742028643414,-2696.30004,0.00035,30]
[356179963,1742028643427,-2502.0,0.00035,30]
[356179964,1742028643439,-506.62630079,0.00035,30]
[356179965,1742028643451,-352.72799642,0.00035,30]
[356179966,1742028643462,-485.305,0.00035,30]
[356179967,1742028643474,-2513.09890421,0.00035,30]
[356179968,1742028643494,-343908.54413566,0.00035,30]
[356179979,1742028643863,-19852.51822778,0.00035,30]
[356179980,1742028643877,-2066.8021701,0.00035,30]
[356179981,1742028643888,-1849.17996934,0.00035,30]
[356179986,1742028646314,-518.2515525,0.00035,30]
[356179987,1742028646326,-314.00849733,0.00035,30]
[356179988,1742028646338,-1526.77504163,0.00035,30]
[356179989,1742028646350,-1270.00036575,0.00035,30]
[356179990,1742028646446,-251.10073731,0.00035,30]
[356179991,1742028646463,-113336.85086669,0.00035,30]
[356179992,1742028646475,-1663.57297098,0.00035,30]
[356179993,1742028646487,-976.81108541,0.00035,30]
[356179994,1742028646499,-828.0,0.00035,30]
[356179995,1742028646512,-8569.6,0.00035,30]
[356179996,1742028646524,-1006.54476448,0.00035,30]
[356179997,1742028646549,-4824.10502997,0.00035,30]
[356179998,1742028646561,-467.96961399,0.00035,30]
[356179999,1742028646573,-1753.10207442,0.00035,30]
[356180000,1742028646586,-1417.56443875,0.00035,30]
[356180077,1742029831524,-1145.66492439,0.00026442,5]
[356180078,1742029831578,-72.33507561,0.00026442,5]
[356180079,1742029831588,-193.59,0.00026849,2]
[356180080,1742029831598,-379.6167143,0.00031464,2]
[356180081,1742029831608,-193.59,0.00032646,2]
[356180082,1742029831618,-534.25,0.00033,2]
[356180083,1742029831627,-382.28,0.00033118,2]
[356180084,1742029831638,-1500.0,0.000332,2]
[356180085,1742029831647,-3932.95,0.00033611,2]
[356180086,1742029831657,-257.77,0.00033868,2]
[356180087,1742029831667,-2607.02732165,0.000339,6]
[356180088,1742029831677,-500.86,0.00033947,2]
[356180089,1742029831687,-1388.26443129,0.00033949,4]
[356180090,1742029831712,-482.90948281,0.00033949,4]
[356180091,1742029831723,-257.77,0.00033957,2]
[356180092,1742029831733,-1000.0,0.00034021,2]
[356180093,1742029831742,-257.77,0.00034046,2]
[356180094,1742029831751,-257.77,0.00034135,2]
[356180095,1742029831761,-456.72,0.00034141,2]
[356180096,1742029831771,-257.77,0.00034224,2]
[356180097,1742029831780,-257.77,0.00034313,2]
[356180098,1742029831790,-257.77,0.00034402,2]
[356180099,1742029831800,-257.77,0.00034492,2]
[356180100,1742029831809,-250.0,0.00034515,2]
[356180101,1742029831819,-205.11,0.00034532,2]
[356180102,1742029831828,-154.54,0.0003457,2]
[356180103,1742029831837,-257.77,0.00034581,2]
[356180104,1742029831847,-4000.0,0.00034599,2]
[356180105,1742029831856,-257.77,0.0003467,2]
[356180106,1742029831866,-354.33,0.00034698,2]
[356180107,1742029831875,-257.77,0.00034759,2]
[356180108,1742029831885,-150.0,0.00034789,2]
[356180109,1742029831894,-20229.99390149,0.0003479,2]
[356180110,1742029831918,-7000.0,0.0003479,2]
[356180111,1742029831955,-24592.47609851,0.0003479,2]
[356180112,1742029831965,-257.77,0.00034848,2]
[356180113,1742029831975,-2166.0,0.000349,14]
[356180114,1742029831986,-223.2153,0.000349,2]
[356180115,1742029831996,-156.9462,0.000349,2]
[356180116,1742029832006,-267.5963,0.000349,2]
[356180117,1742029832015,-3892.3705,0.000349,2]
[356180118,1742029832027,-13803.99786423,0.000349,2]
[356180119,1742029832037,-159.79234946,0.000349,2]
[356180120,1742029832049,-2694.8200679,0.00034905,35]
[356180121,1742029832059,-257.77,0.00034937,2]
[356180122,1742029832068,-1130.124,0.00034999,40]
[356180123,1742029832077,-50926.23946487,0.00035,30]
[356180124,1742029832088,-22226.27415596,0.00035,30]
[356180125,1742029832097,-206.20225763,0.00035,120]
[356180126,1742029832107,-3325.78145338,0.00035,120]
[356180127,1742029832118,-1022.0,0.00035,14]
[356180128,1742029832130,-342.57,0.00035,30]
[356180129,1742029832140,-14000.0,0.00035,30]
[356180130,1742029832149,-24179.93,0.00035,5]
[356180131,1742029832159,-614.9798978,0.00035004,2]
[356180132,1742029832168,-1100.0,0.00035005,120]
[356180133,1742029832177,-257.77,0.00035026,2]
[356180134,1742029832187,-398.5209522,0.00035028,2]
[356180135,1742029832197,-1000.0,0.00035081,2]
[356180136,1742029832207,-3000.0,0.000351,2]
[356180137,1742029832217,-158.13,0.00035101,2]
[356180138,1742029832227,-257.77,0.00035115,2]
[356180139,1742029832236,-4931.2209116,0.00035127,2]
[356180140,1742029832247,-508.47198714,0.00035127,2]
[356180141,1742029832262,-16153.425467,0.00035127,2]
[356180143,1742029837280,-256.91980793,0.00035127,2]
[356180144,1742029837386,-2049.96182633,0.00035127,2]
[356180145,1742029837397,-150.0,0.00035152,7]
[356180146,1742029837408,-1217.21,0.0003516,2]
[356180147,1742029837418,-353.81,0.00035195,2]
[356180148,1742029837428,-257.77,0.00035205,2]
[356180149,1742029837438,-150.0,0.00035231,2]
[356180150,1742029837449,-344.98,0.00035288,120]
[356180151,1742029837458,-257.77,0.00035294,2]
[356180152,1742029837468,-382.28,0.00035382,2]
[356180153,1742029837478,-257.77,0.00035383,2]
[356180154,1742029837488,-162.34,0.00035411,120]
[356180155,1742029837498,-152.59,0.00035413,120]
[356180156,1742029837507,-257.77,0.00035472,2]
[356180157,1742029837518,-165.55,0.00035478,120]
[356180158,1742029837528,-109.69595084,0.00035509,2]
[356180159,1742029837554,-50.09639846,0.00035509,2]
[356180160,1742029837564,-257.77,0.00035561,2]
[356180161,1742029837574,-207.61,0.00035664,2]
[356180162,1742029837584,-207.61,0.00035758,2]
[356180163,1742029837594,-207.61,0.00035852,2]
[356180164,1742029837604,-2184.43885,0.00035888,30]
[356180165,1742029837613,-1500.0,0.000359,2]
[356180166,1742029837623,-207.61,0.00035946,2]
[356180167,1742029837633,-500.0,0.00036,120]
[356180168,1742029837642,-207.61,0.00036039,2]
[356180169,1742029837652,-2184.43885,0.00036088,30]
[356180170,1742029837662,-159.7923493,0.00036118,2]
[356180171,1742029837672,-207.61,0.00036133,2]
[356180172,1742029837681,-207.61,0.00036227,2]
[356180173,1742029837691,-11246.09304236,0.00036277,2]
[356180174,1742029837715,-2557.90482178,0.00036277,2]
[356180175,1742029837726,-2184.43885,0.00036288,30]
[356180176,1742029837736,-207.61,0.00036321,2]
[356180177,1742029837745,-207.61,0.00036415,2]
[356180178,1742029837755,-200.0,0.00036452,2]
[356180180,1742029837764,-200.0,0.00036452,2]
[356180181,1742029837774,-200.0,0.00036452,2]
[356180183,1742029837783,-200.0,0.00036452,2]
[356180184,1742029837793,-200.0,0.00036452,2]
[356180185,1742029837803,-200.0,0.00036452,2]
[356180186,1742029837812,-200.0,0.00036452,2]
[356180187,1742029837823,-200.0,0.00036452,2]
[356180188,1742029837832,-200.0,0.00036452,2]
[356180189,1742029837843,-200.0,0.00036452,2]